bitfinex-derivatives/quotes_SOLF0:USTF0_20250206
["timestamp","ask_amount","ask_price","bid_price","bid_amount"]
[1738881489065,6.7827,191.85,191.75,13.24145122]
[1738881489266,6.7827,191.85,191.72,13.24145122]
[1738881489267,57.58760343,191.87,191.78,13.24145122]
[1738881489659,57.58760343,191.87,191.81,0.03380898]
[1738881490062,5.2122,191.85,191.81,0.03380898]
[1738881490262,57.58760343,191.87,191.81,0.03380898]
[1738881490767,5.2129,191.82,191.81,0.03380898]
[1738881491168,1.6431,191.86,191.74,21.13177546]
[1738881491368,0.03380898,191.83,191.74,21.13177546]
[1738881492168,5.2135,191.8,191.74,26.34677546]
[1738881492361,5.2135,191.8,191.77,0.03812297]
[1738881492763,0.03380898,191.79,191.77,0.03812297]
[1738881494566,5.214,191.78,191.77,0.03812297]
[1738881515279,0.03380898,191.79,191.67,13.21572462]
[1738881515584,5.2154,191.73,191.67,13.21572462]
[1738881515783,5.2154,191.73,191.69,5.2163]
[1738881516481,0.03967913,191.73,191.69,0.03842238]
[1738881516982,5.2162,191.7,191.69,0.03842238]
[1738881520188,3.7022,191.72,191.61,13.21572462]
[1738881520588,3.7022,191.72,191.61,18.43432462]
[1738881520789,5.2178,191.64,191.61,18.43432462]
[1738881521088,5.2178,191.64,191.61,13.21572462]
[1738881521588,0.03288217,191.64,191.61,13.25462307]
[1738881522084,0.03288217,191.64,191.62,5.2181]
[1738881528695,0.03288217,191.64,191.61,13.25462307]
[1738881528897,0.03288217,191.64,191.63,5.2181]
[1738881529696,0.03288217,191.64,191.61,13.25462307]
[1738881531091,5.25088217,191.64,191.61,0.03889845]
[1738881531394,0.03288217,191.64,191.61,0.03889845]
[1738881531593,5.2184,191.62,191.61,0.03889845]
[1738881532896,5.2194,191.59,191.56,8.47266515]
[1738881533087,2.2473,191.63,191.56,8.47266515]
[1738881533696,2.2473,191.63,191.58,8.47266515]
[1738881533893,0.03362032,191.62,191.59,0.03368733]
[1738881534594,5.25202032,191.62,191.59,0.03368733]
[1738881534792,0.03362032,191.62,191.6,8.47266515]
[1738881535194,0.03362032,191.62,191.61,5.2186]
[1738881535399,0.03362032,191.62,191.6,8.47266515]
[1738881536002,0.03362032,191.62,191.6,13.69146515]
[1738881536401,0.03362032,191.62,191.6,8.47266515]
[1738881537100,0.03362032,191.62,191.59,0.03368733]
[1738881537791,0.03362032,191.62,191.59,5.25288733]
[1738881538199,0.03362032,191.62,191.6,8.47266515]
[1738881538497,0.03362032,191.62,191.61,5.2186]
[1738881539802,0.03362032,191.62,191.6,13.69146515]
[1738881540003,0.03362032,191.62,191.6,8.47266515]
[1738881541300,5.25202032,191.62,191.6,8.47266515]
[1738881541501,0.03362032,191.62,191.6,8.47266515]
[1738881541691,0.03362032,191.62,191.59,0.03368733]
[1738881542302,5.2189,191.6,191.59,0.03368733]
[1738881553505,8.47266515,191.61,191.5,8.47266515]
[1738881553704,8.47266515,191.57,191.48,8.47266515]
[1738881553899,8.47266515,191.55,191.46,13.69536515]
[1738881554507,8.47266515,191.53,191.46,13.69536515]
[1738881554706,0.04005777,191.52,191.49,0.03633506]
[1738881555206,5.2216,191.5,191.49,0.03633506]
[1738881558509,7.55955777,191.52,191.49,0.03633506]
[1738881558711,2.33825777,191.52,191.49,0.03633506]
[1738881559104,5.2216,191.51,191.49,0.03633506]
[1738881559714,2.33825777,191.52,191.5,8.47266515]
[1738881559915,2.2982,191.52,191.5,8.47266515]
[1738881560409,1.5274,191.55,191.5,8.47266515]
[1738881560601,1.5224,191.56,191.5,8.47266515]
[1738881560802,1.5224,191.56,191.52,8.47266515]
[1738881561009,0.03292258,191.55,191.52,8.47266515]
[1738881562113,0.03292258,191.55,191.54,8.47266515]
[1738881563511,0.03292258,191.55,191.54,13.69316515]
[1738881563910,5.2184,191.62,191.54,8.47266515]
[1738881564108,2.2206,191.64,191.59,8.47266515]
[1738881564606,2.2206,191.64,191.61,8.47266515]
[1738881565008,5.217,191.68,191.61,13.69126515]
[1738881565312,1.5875,191.69,191.63,8.47266515]
[1738881565313,0.04015779,191.64,191.63,8.47266515]
[1738881565702,3.7539,191.69,191.63,8.47266515]
[1738881565903,0.03645203,191.65,191.63,8.47266515]
[1738881568215,0.03645203,191.65,191.64,5.2178]
[1738881568512,0.03645203,191.65,191.63,8.47266515]
[1738881568716,0.03645203,191.65,191.61,0.04014869]
[1738881568717,5.2184,191.62,191.61,0.04014869]
[1738881569109,0.03645203,191.65,191.57,8.47266515]
[1738881569312,5.2197,191.57,191.55,8.47266515]
[1738881570111,1.6612,191.63,191.55,8.47266515]
[1738881570413,0.03331988,191.58,191.54,0.03914316]
[1738881570721,5.2215,191.51,191.49,15.65960831]
[1738881572015,5.25928668,191.52,191.49,8.47266515]
[1738881572315,5.25928668,191.52,191.48,0.04015448]
[1738881574914,5.25928668,191.52,191.48,5.26225448]
[1738881576717,0.03818668,191.52,191.49,5.2218]
[1738881577522,5.25928668,191.52,191.49,5.2218]
[1738881586523,0.03818668,191.52,191.51,5.2213]
[1738881587238,0.03818668,191.52,191.5,5.2215]
[1738881589222,0.03818668,191.52,191.51,5.2213]
[1738881589832,0.03818668,191.52,191.5,5.2216]
[1738881591333,5.2202,191.56,191.52,5.221]
[1738881592431,5.25525918,191.56,191.52,5.25768115]
[1738881592636,0.03505918,191.56,191.55,5.2203]
[1738881594631,0.03505918,191.56,191.55,13.69343881]
[1738881597649,95.89167647,191.72,191.59,5.2189]
[1738881597650,8.47313881,191.66,191.59,5.2189]
[1738881597842,8.47313881,191.66,191.59,8.47313881]
[1738881598244,5.2178,191.64,191.59,13.69223881]
[1738881598441,13.99793881,191.68,191.59,8.47313881]
[1738881598636,13.99793881,191.68,191.5,2.0228]
[1738881598637,13.99793881,191.68,191.61,8.47313881]
[1738881598843,0.03483263,191.65,191.62,0.03711296]
[1738881599844,0.03483263,191.65,191.62,5.25541296]
[1738881600143,0.03483263,191.65,191.62,0.03711296]
[1738881600452,0.03483263,191.65,191.57,13.69263881]
[1738881600653,8.47313881,191.64,191.55,8.47313881]
[1738881600852,8.47313881,191.62,191.55,8.47313881]
[1738881601052,8.47313881,191.62,191.53,8.47313881]
[1738881601255,8.47313881,191.6,191.53,8.47313881]
[1738881601551,1.66543285,191.59,191.51,13.69443881]
[1738881601748,1.66543285,191.59,191.55,0.03740617]
[1738881602853,5.2203,191.56,191.55,0.03740617]
[1738881608055,5.221,191.53,191.46,13.24432835]
[1738881608262,1.5426,191.58,191.46,13.24432835]
[1738881609054,5.25650114,191.54,191.5,0.03399634]
[1738881609554,0.03580114,191.54,191.5,0.03399634]
[1738881610761,5.2208,191.53,191.5,0.03399634]
[1738881614269,5.2212,191.52,191.5,0.03399634]
[1738881614559,0.03580114,191.54,191.5,0.03399634]
[1738881614761,2.0971,191.53,191.5,0.03399634]
[1738881615758,5.2213,191.51,191.5,0.03399634]
[1738881618163,2.0971,191.53,191.5,0.03399634]
[1738881618862,5.2213,191.52,191.5,0.03399634]
[1738881621569,2.0971,191.53,191.5,0.03399634]
[1738881622667,2.0971,191.53,191.5,8.51174345]
[1738881624169,7.318,191.53,191.5,0.03399634]
[1738881625372,2.0971,191.53,191.48,8.47774711]
[1738881625570,2.0971,191.53,191.44,13.70074711]
[1738881626175,5.2221,191.49,191.44,13.70074711]
[1738881626573,0.03953439,191.48,191.45,0.03973642]
[1738881628474,0.03953439,191.48,191.45,5.26263642]
[1738881632681,5.26173439,191.48,191.45,0.03973642]
[1738881633281,5.26173439,191.48,191.45,5.26263642]
[1738881633582,0.03953439,191.48,191.45,5.26263642]
[1738881633877,0.03953439,191.48,191.45,0.03973642]
[1738881634084,0.03953439,191.48,191.46,13.70024711]
[1738881634289,0.03953439,191.48,191.46,8.47774711]
[1738881634585,0.03953439,191.48,191.47,5.2224]
[1738881637482,3.439e-05,191.48,191.47,5.2224]
[1738881637687,3.728,191.58,191.46,8.47774711]
[1738881637885,3.728,191.58,191.52,8.47774711]
[1738881638385,5.22,191.56,191.52,8.47774711]
[1738881638778,5.2564089,191.56,191.52,8.51201343]
[1738881639689,5.2564089,191.56,191.52,13.73301343]
[1738881640886,0.0364089,191.56,191.52,13.73301343]
[1738881645491,0.0364089,191.56,191.52,8.51201343]
[1738881645688,0.0364089,191.56,191.55,5.2203]
[1738881673308,8.9e-06,191.56,191.55,5.2203]
[1738881673808,8.47774711,191.7,191.63,8.47774711]
[1738881674004,5.2165,191.69,191.63,8.47774711]
[1738881674610,13.69394711,191.7,191.66,5.217]
[1738881674911,0.03903253,191.68,191.66,5.217]
[1738881675411,8.51677964,191.68,191.64,0.03625676]
[1738881675713,8.47774711,191.66,191.55,71.64067911]
[1738881675913,8.47774711,191.61,191.55,63.162932]
[1738881676112,5.2194,191.59,191.55,68.383132]
[1738881676712,5.2194,191.59,191.55,5.2202]
[1738881677013,5.22,191.56,191.55,0.03510988]
[1738881677213,8.47774711,191.57,191.54,41.49734239]
[1738881677410,8.47774711,191.55,191.54,37.96264239]
[1738881677606,13.69804711,191.55,191.54,37.96264239]
[1738881677806,8.47774711,191.55,191.53,57.09611482]
[1738881678008,8.47774711,191.55,191.51,85.66051946]
[1738881678208,4.12,191.58,191.51,85.66051946]
[1738881678209,13.69884711,191.52,191.51,7.855e-05]
[1738881678414,8.47774711,191.52,191.51,0.03425189]
[1738881679117,13.69884711,191.52,191.51,0.03425189]
[1738881686321,8.47774711,191.52,191.51,0.03425189]
[1738881686616,0.03892169,191.55,191.51,0.03425189]
[1738881686820,0.03892169,191.55,191.52,8.47774711]
[1738881687823,0.03892169,191.55,191.54,5.2205]
[1738881691123,0.03892169,191.55,191.54,13.69824711]
[1738881691811,21.05555048,191.63,191.54,8.47774711]
[1738881692019,21.05555048,191.63,191.59,5.219]
[1738881692522,21.05555048,191.63,191.6,5.2186]
[1738881692717,21.05555048,191.63,191.58,8.47774711]
[1738881692913,21.05555048,191.63,191.56,8.47774711]
[1738881693118,64.62588174,191.64,191.56,8.47774711]
[1738881693119,0.0400787,191.62,191.59,0.03713074]
[1738881694518,0.0400787,191.62,191.61,5.2186]
[1738881694726,0.0400787,191.62,191.59,0.03713074]
[1738881695122,0.0400787,191.62,191.6,5.2186]
[1738881695425,0.0400787,191.62,191.59,0.03713074]
[1738881695623,0.0400787,191.62,191.61,5.2186]
[1738881696526,21.05555048,191.66,191.65,5.2175]
[1738881698323,0.03848016,191.67,191.66,5.2173]
[1738881707225,0.03848016,191.67,191.65,5.2174]
[1738881714640,0.03848016,191.67,191.66,5.2173]
[1738881722140,5.2163,191.7,191.66,5.2173]
[1738881722443,21.05555048,191.73,191.68,5.2165]
[1738881722444,5.216,191.71,191.68,5.2165]
[1738881722834,21.05555048,191.73,191.68,5.2165]
[1738881723041,26.27115048,191.73,191.68,5.2165]
[1738881723244,0.03331396,191.72,191.69,0.03325427]
[1738881723746,21.05555048,191.73,191.7,8.47774711]
[1738881723934,21.05555048,191.73,191.71,2.3447]
[1738881724134,18.53045048,191.73,191.72,8.47774711]
[1738881724339,18.53045048,191.73,191.72,13.69334711]
[1738881725648,56.18192633,191.74,191.73,5.2154]
[1738881725649,0.0337917,191.74,191.73,5.2154]
[1738881727943,56.14813463,191.78,191.77,5.2143]
[1738881728150,56.14813463,191.8,191.75,8.47774711]
[1738881729050,56.14813463,191.8,191.79,5.2137]
[1738881731052,0.03543739,191.81,191.79,5.2137]
[1738881731255,0.03543739,191.81,191.76,0.03788374]
[1738881731954,5.2137,191.8,191.76,0.03788374]
[1738881732355,0.03543739,191.81,191.76,0.03788374]
[1738881732559,5.214,191.79,191.76,0.03788374]
[1738881738958,8.47774711,191.8,191.76,0.03788374]
[1738881739158,8.47774711,191.78,191.76,0.03788374]
[1738881740058,5.2143,191.77,191.76,0.03788374]
[1738881740359,8.47774711,191.78,191.67,1.5959]
[1738881740549,8.47774711,191.74,191.67,1.5959]
[1738881740753,8.47774711,191.72,191.64,8.47774711]
[1738881741156,8.47774711,191.7,191.62,8.47774711]
[1738881741466,0.03820263,191.68,191.64,0.03310204]
[1738881742360,8.51594974,191.68,191.64,0.03310204]
[1738881742950,5.217,191.67,191.64,0.03310204]
[1738881746963,5.2173,191.66,191.64,0.03310204]
[1738881748159,5.2175,191.65,191.64,0.03310204]
[1738881750261,8.47774711,191.63,191.54,10.81304711]
[1738881750463,8.47774711,191.61,191.54,10.81304711]
[1738881750666,8.47774711,191.61,191.54,2.3353]
[1738881751160,5.254962,191.59,191.56,0.03887414]
[1738881751355,0.035762,191.59,191.56,0.03887414]
[1738881752267,5.2196,191.58,191.56,0.03887414]
[1738881752470,0.035762,191.59,191.56,0.03887414]
[1738881753263,5.255162,191.59,191.56,0.03887414]
[1738881757671,0.035762,191.59,191.56,0.03887414]
[1738881757867,0.035762,191.59,191.56,13.73662125]
[1738881763777,0.035762,191.59,191.56,5.25887414]
[1738881765780,0.035762,191.59,191.56,0.03887414]
[1738881765979,5.255162,191.59,191.56,0.03887414]
[1738881766181,0.035762,191.59,191.56,0.03887414]
[1738881766783,5.2195,191.58,191.56,0.03887414]
[1738881781195,5.2195,191.58,191.56,5.25877414]
[1738881783197,21.12765876,191.59,191.56,5.25877414]
[1738881783497,26.34695876,191.59,191.56,5.25877414]
[1738881784004,21.09189676,191.58,191.56,5.25877414]
[1738881786304,36.27625417,191.58,191.56,5.25877414]
[1738881789406,36.27625417,191.58,191.57,5.2197]
[1738881795610,36.31201617,191.59,191.56,0.03887414]
[1738881795908,36.31201617,191.59,191.58,5.2194]
[1738881798414,71.36825404,191.59,191.58,5.2194]
[1738881808220,15.22011941,191.59,191.58,5.2194]
[1738881808422,0.035762,191.59,191.58,5.2194]
[1738881809624,72.30700774,191.59,191.58,5.2194]
[1738881811228,72.30700774,191.59,191.56,0.03887414]
[1738881811415,72.30700774,191.59,191.57,5.2196]
[1738881813626,36.62121133,191.58,191.57,5.2196]
[1738881822433,36.62121133,191.58,191.56,0.03887414]
[1738881822636,5.2197,191.57,191.56,0.03887414]
[1738881823836,77.49094574,191.57,191.56,0.03887414]
[1738881827638,37.52242387,191.57,191.56,0.03887414]
[1738881829241,122.91560574,191.57,191.56,0.03887414]
[1738881833341,105.86930213,191.57,191.56,0.03887414]
[1738881834745,114.34704924,191.57,191.56,0.03887414]
[1738881835245,28.95386737,191.57,191.56,0.03887414]
[1738881837250,5.2206,191.54,191.5,13.69924711]
[1738881838349,5.26070781,191.54,191.5,13.73264219]
[1738881840048,36.56792728,191.53,191.5,13.73264219]
[1738881840649,36.56792728,191.53,191.5,8.51114219]
[1738881840838,36.56792728,191.53,191.5,0.03339508]
[1738881841043,5.2213,191.51,191.5,0.03339508]
[1738881845550,26.53260702,191.53,191.5,0.03339508]
[1738881845750,21.31150702,191.53,191.5,8.51114219]
[1738881847041,21.31150702,191.53,191.5,13.73264219]
[1738881848352,0.04010781,191.54,191.5,13.73264219]
[1738881853348,36.5725864,191.54,191.5,13.73264219]
[1738881854352,41.7930864,191.54,191.5,13.73264219]
[1738881854550,41.7930864,191.54,191.5,5.25489508]
[1738881855556,26.57211483,191.54,191.5,5.25489508]
[1738881857255,21.31150702,191.53,191.5,5.25489508]
[1738881858954,36.55108606,191.53,191.5,5.25489508]
[1738881862961,21.31150702,191.52,191.5,5.25489508]
[1738881865462,21.31150702,191.51,191.5,5.25489508]
[1738881867363,36.55108606,191.51,191.5,5.25489508]
[1738881874263,36.55108606,191.51,191.5,0.03339508]
[1738881877765,41.77238606,191.51,191.5,0.03339508]
[1738881879963,20.46087904,191.51,191.5,0.03339508]
[1738881882071,77.29156444,191.51,191.5,0.03339508]
[1738881885673,41.79011911,191.51,191.5,0.03339508]
[1738881891474,77.29156444,191.51,191.5,0.03339508]
[1738881898083,122.75321075,191.51,191.5,0.03339508]
[1738881900188,105.70690714,191.51,191.5,0.03339508]
[1738881900389,114.18465425,191.51,191.5,0.03339508]
[1738881902490,187.4060163,191.51,191.5,0.03339508]
[1738881904892,28.93862615,191.51,191.5,0.03339508]
[1738881906087,20.46087904,191.51,191.5,0.03339508]
[1738881906287,15.23957904,191.51,191.5,0.03339508]
[1738881906493,100.03294323,191.51,191.5,0.03339508]
[1738881907292,105.25424323,191.51,191.5,0.03339508]
[1738881907793,100.03294323,191.51,191.5,0.03339508]
[1738881908393,71.7815796,191.51,191.5,0.03339508]
[1738881910195,56.54200056,191.51,191.5,0.03339508]
[1738881912096,36.45943588,191.51,191.5,0.03339508]
[1738881916300,71.7815796,191.51,191.5,0.03339508]
[1738881918402,77.0028796,191.51,191.5,0.03339508]
[1738881919397,85.48062671,191.51,191.5,0.03339508]
[1738881919596,5.2226,191.47,191.42,2.0599]
[1738881920097,5.2227,191.46,191.42,2.0599]
[1738881920693,5.26111663,191.46,191.42,2.09997786]
[1738881921196,5.2232,191.45,191.42,2.09997786]
[1738881922507,5.2235,191.43,191.42,2.09997786]
[1738881924101,5.2235,191.43,191.42,0.04007786]
[1738881925499,41.79857465,191.43,191.42,0.04007786]
[1738881926904,50.27632176,191.43,191.42,0.04007786]
[1738881928409,108.51069034,191.43,191.36,8.47774711]
[1738881928605,5.2244,191.4,191.36,8.47774711]
[1738881929610,5.25842605,191.4,191.36,8.51124508]
[1738881930911,5.25842605,191.4,191.36,0.03349797]
[1738881935113,5.2247,191.39,191.36,0.03349797]
[1738881936217,5.25842605,191.4,191.36,0.03349797]
[1738881939618,5.25842605,191.4,191.36,5.25889797]
[1738881944517,5.2247,191.39,191.36,0.03349797]
[1738881945514,5.25842605,191.4,191.36,5.25889797]
[1738881949520,5.2251,191.38,191.36,0.03349797]
[1738881951017,5.2252,191.37,191.36,0.03349797]
[1738881951513,13.70294711,191.37,191.36,0.03349797]
[1738881955017,50.08070427,191.37,191.36,0.03349797]
[1738881957617,165.01688338,191.37,191.29,5.2273]
[1738881957814,5.2262,191.34,191.29,5.2273]
[1738881958923,5.2262,191.34,191.3,0.03832111]
[1738881958924,0.03393009,191.33,191.3,0.03832111]
[1738881960823,5.26023009,191.33,191.3,0.03832111]
[1738881961015,0.03393009,191.33,191.3,0.03832111]
[1738881961621,36.42494839,191.33,191.3,0.03832111]
[1738881962920,41.65124839,191.33,191.3,0.03832111]
[1738881963626,5.26023009,191.33,191.3,0.03832111]
[1738881966121,0.03393009,191.33,191.31,5.2266]
[1738881966322,0.03393009,191.33,191.31,7.3153]
[1738881967025,5.26033009,191.33,191.31,2.0887]
[1738881967530,2.73613009,191.33,191.31,2.0887]
[1738881969830,2.73613009,191.33,191.31,7.3155]
[1738881978736,5.2615248,191.34,191.31,7.3155]
[1738881979441,0.0354248,191.34,191.31,2.0887]
[1738881979643,5.2265,191.32,191.31,2.0887]
[1738881980143,5.2264,191.33,191.31,2.0887]
[1738881981443,0.0354248,191.34,191.31,2.0887]
[1738881981742,5.2615248,191.34,191.31,2.0887]
[1738881981943,0.0354248,191.34,191.31,2.0887]
[1738881983142,21.27296857,191.33,191.31,2.0887]
[1738881983742,21.27296857,191.33,191.32,5.2265]
[1738881984139,21.27296857,191.33,191.31,2.0887]
[1738881984745,21.27296857,191.33,191.31,7.3153]
[1738881987446,36.494363,191.32,191.31,7.3153]
[1738882005163,26.331963,191.32,191.31,7.3153]
[1738882005373,16.208363,191.32,191.31,7.3153]
[1738882007571,0.0354248,191.34,191.33,5.2263]
[1738882013669,0.0354248,191.34,191.32,5.2265]
[1738882019781,14.92894786,191.34,191.32,5.2265]
[1738882023985,5.2614248,191.34,191.31,5.2267]
[1738882024285,0.0354248,191.34,191.31,5.2267]
[1738882024986,0.0354248,191.34,191.32,5.2265]
[1738882028790,14.93554167,191.34,191.32,5.2265]
[1738882030785,0.0354248,191.34,191.32,5.2265]
[1738882033389,0.0354248,191.34,191.33,5.2263]
[1738882034086,0.0354248,191.34,191.32,8.47774711]
[1738882034087,0.0354248,191.34,191.32,13.70414711]
[1738882034287,0.0354248,191.34,191.32,5.2264]
[1738882036489,0.0354248,191.34,191.3,0.03832111]
[1738882037691,21.37312204,191.32,191.3,0.03832111]
[1738882038192,8.47774711,191.31,191.3,0.03832111]
[1738882038591,13.70454711,191.31,191.3,0.03832111]
[1738882039895,85.3305864,191.31,191.3,0.03832111]
[1738882041391,49.91398876,191.31,191.3,0.03832111]
[1738882043498,5.2274,191.29,191.24,13.70634711]
[1738882043693,44.68718876,191.31,191.24,13.70634711]
[1738882044696,0.03844524,191.29,191.26,0.03343862]
[1738882044896,5.2278,191.28,191.26,0.03343862]
[1738882045097,5.2278,191.28,191.24,13.70634711]
[1738882045297,5.2278,191.28,191.24,5.2286]
[1738882045899,5.2278,191.28,191.23,5.2289]
[1738882046098,8.51619235,191.29,191.22,8.47774711]
[1738882046291,5.2284,191.26,191.24,0.03861582]
[1738882046896,5.2284,191.25,191.24,0.03861582]
[1738882047691,8.47774711,191.27,191.2,65.05416747]
[1738882047888,5.2292,191.23,191.16,8.47774711]
[1738882048091,8.47774711,191.25,191.16,8.47774711]
[1738882048893,0.03892035,191.22,191.19,0.03725972]
[1738882050799,5.26822035,191.22,191.19,0.03725972]
[1738882052796,0.03892035,191.22,191.19,0.03725972]
[1738882053001,5.2295,191.21,191.19,0.03725972]
[1738882054903,5.2298,191.2,191.19,0.03725972]
[1738882055403,5.2298,191.2,191.16,5.2308]
[1738882056803,5.2298,191.2,191.16,5.26514546]
[1738882057702,10.15894711,191.21,191.16,0.03434546]
[1738882058503,8.47774711,191.19,191.16,0.03434546]
[1738882058907,5.2304,191.18,191.16,0.03434546]
[1738882062509,8.47774711,191.17,191.16,0.03434546]
[1738882068512,5.2304,191.18,191.16,0.03434546]
[1738882074964,8.47774711,191.19,191.16,5.26524546]
[1738882075924,8.47774711,191.19,191.16,0.03434546]
[1738882076224,13.70804711,191.19,191.16,5.26524546]
[1738882076423,13.70804711,191.19,191.16,0.03434546]
[1738882077926,13.70804711,191.19,191.16,5.26524546]
[1738882078726,13.70804711,191.19,191.1,8.47774711]
[1738882079926,0.0347477,191.16,191.13,0.03579974]
[1738882081722,0.0347477,191.16,191.15,5.2312]
[1738882094533,4.77e-05,191.16,191.15,5.2312]
[1738882176291,4.77e-05,191.16,191.13,0.03579974]
[1738882176496,5.2310477,191.16,191.13,0.03579974]
[1738882177898,5.2310477,191.16,191.13,5.26739974]
[1738882179895,4.77e-05,191.16,191.13,5.26739974]
[1738882180096,5.2312,191.15,191.13,0.03579974]
[1738882180504,5.2317,191.14,191.09,8.47774711]
[1738882180703,5.2317,191.14,191.07,58.05670004]
[1738882181702,5.2317,191.14,191.09,0.03868213]
[1738882181903,5.2317,191.14,191.11,5.2322]
[1738882182198,8.47774711,191.15,191.09,0.03868213]
[1738882182399,8.47774711,191.13,191.09,0.03868213]
[1738882182598,5.2331,191.08,191.03,8.47774711]
[1738882182803,5.2331,191.08,191.01,8.47774711]
[1738882182998,5.2331,191.08,191.04,5.234]
[1738882183204,5.2339,191.06,191.01,8.47774711]
[1738882183594,8.47774711,191.09,191.01,13.71274711]
[1738882183799,0.03392085,191.05,191.01,13.71274711]
[1738882184103,0.03392085,191.05,191.01,8.47774711]
[1738882184298,0.03392085,191.05,191.02,5.2346]
[1738882185098,0.03392085,191.05,191.01,8.47774711]
[1738882185306,0.03392085,191.05,191.0,5.2351]
[1738882185604,1.624,191.08,191.0,5.2351]
[1738882185605,8.47774711,191.07,191.0,5.2351]
[1738882185800,0.03469114,191.04,191.0,5.2351]
[1738882186907,5.2345,191.03,191.0,5.2351]
[1738882190912,5.2345,191.03,190.99,8.47774711]
[1738882191617,5.2345,191.03,191.0,5.2351]
[1738882191815,5.235,191.01,190.97,8.47774711]
[1738882192214,5.26997758,191.01,190.98,5.2356]
[1738882192515,0.03497758,191.01,190.97,8.47774711]
[1738882193117,0.03497758,191.01,191.0,5.2353]
[1738882198418,7.758e-05,191.01,191.0,5.2353]
[1738882221226,7.758e-05,191.01,190.99,8.51311109]
[1738882221227,7.758e-05,191.01,190.99,13.74871109]
[1738882221624,7.758e-05,191.01,190.99,5.27096398]
[1738882222231,5.23527758,191.01,190.99,0.03536398]
[1738882223833,7.758e-05,191.01,190.99,0.03536398]
[1738882224034,5.2353,191.0,190.99,0.03536398]
[1738882224734,5.2358,190.98,190.95,8.47774711]
[1738882224931,7.758e-05,191.01,190.95,8.47774711]
[1738882226469,7.758e-05,191.01,190.93,8.47774711]
[1738882226630,8.47774711,191.01,190.91,8.47774711]
[1738882226834,0.03845467,190.99,190.91,8.47774711]
[1738882227337,5.2366,190.96,190.92,5.2375]
[1738882228131,8.51620178,190.99,190.92,5.2375]
[1738882229734,5.2364,190.96,190.92,5.2375]
[1738882230034,5.2364,190.96,190.93,5.2372]
[1738882231731,5.2362,190.97,190.93,5.2372]
[1738882232636,5.2362,190.97,190.94,5.2369]
[1738882232938,5.2362,190.97,190.94,2.7122]
[1738882233134,5.2365,190.96,190.91,8.47774711]
[1738882233330,5.2365,190.96,190.86,51.66762962]
[1738882233331,5.2365,190.96,190.93,5.237]
[1738882233837,5.27240318,190.96,190.93,5.237]
[1738882237036,5.2367,190.95,190.93,5.237]
[1738882238240,5.27240318,190.96,190.93,5.237]
[1738882240245,5.2368,190.95,190.92,5.2374]
[1738882242639,1.5379,190.94,190.92,5.2374]
[1738882242841,6.7749,190.94,190.92,5.2374]
[1738882243240,6.7749,190.94,190.91,5.2377]
[1738882243642,6.80937637,190.94,190.91,5.2377]
[1738882246150,1.57237637,190.94,190.86,51.66762962]
[1738882246447,5.2374,190.93,190.9,5.2379]
[1738882252454,5.2376,190.92,190.89,5.2381]
[1738882252854,5.2376,190.92,190.86,51.66762962]
[1738882253754,5.2376,190.92,190.9,5.238]
[1738882254453,8.47774711,190.93,190.86,51.66762962]
[1738882254752,5.2381,190.9,190.88,5.2384]
[1738882254957,8.47774711,190.93,190.88,5.2384]
[1738882255358,5.2379,190.91,190.88,5.2384]
[1738882256054,5.2381,190.9,190.87,5.2387]
[1738882256459,5.2381,190.9,190.86,51.66762962]
[1738882256961,5.2754702,190.9,190.86,51.66762962]
[1738882257762,5.2754702,190.9,190.88,5.2386]
[1738882260661,5.2754702,190.9,190.83,8.47774711]
[1738882260862,5.2754702,190.9,190.87,5.2387]
[1738882263661,5.2389,190.87,190.83,5.2398]
[1738882263865,8.47774711,190.89,190.79,8.47774711]
[1738882264369,0.03926248,190.86,190.85,5.2394]
[1738882264964,0.03926248,190.86,190.84,5.2396]
[1738882265366,0.03926248,190.86,190.78,1.5388]
[1738882265567,5.2394,190.85,190.78,1.5388]
[1738882266169,8.47774711,190.85,190.75,8.47774711]
[1738882266469,5.2404,190.82,190.75,8.47774711]
[1738882266669,5.27544916,190.82,190.75,8.47774711]
[1738882266873,13.71854711,190.81,190.73,8.47774711]
[1738882267266,0.03352196,190.79,190.73,8.47774711]
[1738882267466,13.75256907,190.79,190.74,5.2423]
[1738882267663,13.75256907,190.79,190.71,8.47774711]
[1738882268260,5.2413,190.78,190.74,5.2423]
[1738882269366,5.2413,190.78,190.71,8.47774711]
[1738882269367,8.51126907,190.79,190.75,5.2421]
[1738882269668,13.75236907,190.79,190.75,5.2421]
[1738882270871,8.51126907,190.79,190.76,5.2419]
[1738882272873,8.51126907,190.79,190.71,8.47774711]
[1738882273064,8.51126907,190.79,190.77,5.2416]
[1738882273263,8.51126907,190.79,190.71,8.47774711]